fUSD/lending_fUSD_20240812
["ID","MTS","AMOUNT","RATE_DAILY","PERIOD"]
[334710843,1723495833153,-4170.26078303,0.00010973,2]
[334710844,1723495833164,-727.39559761,0.00010973,2]
[334710845,1723495833175,-609.67999998,0.00010973,2]
[334710846,1723495833216,-1570.52069261,0.00010973,2]
[334710847,1723495833228,-1550.21292677,0.00010973,2]
[334710848,1723495833237,-200.0,0.00010973,2]
[334710849,1723495833246,-151.02,0.0001099,2]
[334710850,1723495833255,-176.76356375,0.00010997,2]
[334710851,1723495833264,-2040.3074502,0.00010999,2]
[334710852,1723495833276,-218.57290795,0.00010999,2]
[334710853,1723495833285,-1000.0,0.00010999,2]
[334710854,1723495833294,-6653.38819468,0.00011,2]
[334710855,1723495833307,-2613.10872722,0.00011,2]
[334710856,1723495837601,194.35308966,0.0001,2]
[334710860,1723495838404,-994.53623725,0.000109,2]
[334710861,1723495838516,-2536.31456275,0.000109,2]
[334710862,1723495838526,-146208.12713436,0.00011,2]
[334710863,1723495838537,-339987.46065341,0.00011,2]
[334710864,1723495838548,-25299.15984209,0.00011,2]
[334710865,1723495838789,-11291.99679093,0.00011,2]
[334710866,1723495838800,-19851.5830375,0.00011,2]
[334710921,1723495840388,-1300.57762487,0.00011,2]
[334710922,1723495840401,-1396.69046004,0.00011,2]
[334710923,1723495840412,-891.51412651,0.00011,2]
[334710924,1723495840424,-21801.74223655,0.00011,2]
[334710925,1723495840448,-2409.35153101,0.00011,2]
[334710926,1723495840459,-2430.53542353,0.00011,2]
[334710927,1723495840472,-205028.33458789,0.00011,2]
[334710928,1723495840483,-644.10641409,0.00011,2]
[334710929,1723495840514,-593.87324,0.00011,2]
[334710930,1723495840574,-1225.9364753,0.00011,2]
[334710931,1723495840586,-1548.34307602,0.00011,2]
[334710932,1723495840597,-509.73860691,0.00011,2]
[334710933,1723495840609,-649.02,0.00011,2]
[334710934,1723495840620,-392.85540526,0.00011,2]
[334710935,1723495840641,-3291.39065368,0.00011,2]
[334710936,1723495840659,-322.26502367,0.00011,2]
[334710937,1723495840696,-1092.27862809,0.00011,2]
[334710958,1723495843409,-778.84,0.00011,2]
[334710959,1723495843421,-1968.40098272,0.00011,2]
[334710960,1723495843434,-3401.48620004,0.00011,2]
[334710961,1723495843447,-1317.67192242,0.00011,2]
[334710962,1723495843739,-800.90047991,0.00011,2]
[334710963,1723495843767,-478.6711612,0.00011,2]
[334710964,1723495843792,-869.95370905,0.00011,2]
[334710965,1723495843804,-115169.47711963,0.00011,2]
[334710967,1723495843814,-250.0,0.00011,2]
[334710969,1723495843824,-3000.0,0.00011,2]
[334710971,1723495843834,-760.52,0.00011,2]
[334710972,1723495843844,-167.60385544,0.00011086,2]
[334710973,1723495843854,-151.02,0.00011095,2]
[334710974,1723495843865,-155.0,0.00011105,2]
[334710975,1723495843875,-155.0,0.00011105,2]
[334710976,1723495843886,-10534.15307555,0.00011105,2]
[334710977,1723495843896,-962.44601255,0.00011105,2]
[334710978,1723495843905,-443.72133413,0.00011105,2]
[334710979,1723495843915,-520.13340827,0.00011105,2]
[334710980,1723495843925,-528.91996067,0.00011105,2]
[334710981,1723495843935,-419.10841212,0.00011105,2]
[334710982,1723495843944,-1822.76560864,0.00011105,2]
[334710983,1723495843954,-3937.46359227,0.00011105,2]
[334710984,1723495843964,-3032.35761195,0.00011105,2]
[334710985,1723495843973,-155.0,0.00011105,2]
[334710986,1723495843983,-380.91787321,0.00011105,2]
[334710987,1723495843993,-278.67680477,0.00011105,2]
[334710988,1723495844002,-1298.23330788,0.00011105,2]
[334710989,1723495844012,-164.37927092,0.00011105,2]
[334710990,1723495844022,-2341.8386325,0.00011105,2]
[334710991,1723495844031,-205.93925426,0.00011105,2]
[334710992,1723495844041,-357.45302385,0.00011105,2]
[334710993,1723495844051,-202.906155,0.00011105,2]
[334710994,1723495844061,-380.32741541,0.00011105,2]
[334710995,1723495844070,-359.41537774,0.00011105,2]
[334710996,1723495844079,-265.43626793,0.00011105,2]
[334710997,1723495844089,-213.78684296,0.00011105,2]
[334710998,1723495844098,-203.41395605,0.00011105,2]
[334710999,1723495844108,-165.50846167,0.00011105,2]
[334711000,1723495844117,-218.91005949,0.00011105,2]
[334711001,1723495844127,-155.51506859,0.00011105,2]
[334711002,1723495844137,-155.44272361,0.00011105,2]
[334711003,1723495844147,-205.12082173,0.00011105,2]
[334711004,1723495844156,-330.1975188,0.00011105,2]
[334711005,1723495844165,-175.60619042,0.00011105,2]
[334711006,1723495844174,-209.45746072,0.00011105,2]
[334711007,1723495844183,-155.0,0.00011105,2]
[334711008,1723495844192,-211.73961936,0.00011105,2]
[334711009,1723495844202,-313.72504289,0.00011105,2]
[334711010,1723495844211,-270.58164358,0.00011105,2]
[334711011,1723495844221,-206.76991049,0.00011105,2]
[334711012,1723495844230,-396.52311045,0.00011105,2]
[334711013,1723495844240,-155.0,0.00011105,2]
[334711014,1723495844249,-309.29668231,0.00011105,2]
[334711015,1723495844260,-15483.10746637,0.00011105,2]
[334711016,1723495844270,-155.0,0.00011105,2]
[334711017,1723495844279,-4804.0,0.00011123,2]
[334711018,1723495844288,-35727.72779464,0.00011186,2]
[334711019,1723495844299,-25322.221128,0.00011186,2]
[334711020,1723495844309,-420.82,0.00011191,2]
[334711021,1723495844319,-976.96,0.00011191,2]
[334711022,1723495844328,-2222.59334509,0.00011205,2]
[334711023,1723495844341,-2425.04959483,0.00011205,2]
[334711024,1723495844377,-627.59413878,0.00011205,2]
[334711025,1723495846446,-177.81157235,0.00011205,2]
[334711026,1723495846455,-103.19724006,0.00011244,2]
[334711027,1723495846466,-317.13482024,0.00011244,2]
[334711028,1723495846476,-161.02,0.00011267,2]
[334711029,1723495846486,-161.02,0.00011272,2]
[334711030,1723495846495,-161.02,0.00011277,2]
[334711031,1723495846505,-161.02,0.00011282,2]
[334711032,1723495846515,-161.02,0.00011287,2]
[334711033,1723495846524,-161.02,0.00011292,2]
[334711034,1723495846533,-69.82510279,0.00011297,2]
[334711035,1723495846549,-91.19489721,0.00011297,2]
[334711036,1723495846558,-161.02,0.00011302,2]
[334711037,1723495846574,-161.02,0.00011308,2]
[334711038,1723495846583,-161.02,0.00011313,2]
[334711039,1723495846593,-161.02,0.00011318,2]
[334711040,1723495846603,-161.02,0.00011323,2]
[334711041,1723495846613,-196.4,0.00011333,2]
[334711042,1723495846622,-936.0,0.00011402,2]
[334711043,1723495846632,-203.6,0.00011455,2]
[334711044,1723495846645,-388.08345911,0.00011506,2]
[334711045,1723495846655,-948.7757435,0.00011525,2]
[334711046,1723495846664,-0.86235365,0.00011743,2]
[334711047,1723495846675,-612.67,0.00011743,2]
[334711048,1723495846692,-8.46764635,0.00011743,2]
[334711049,1723495846702,-1257.0,0.00011743,2]
[334711050,1723495846711,-1471.21288047,0.00011743,2]
[334711051,1723495846722,-452.78711953,0.00011743,2]
[334711052,1723495846732,-264.598,0.00011743,2]
[334711053,1723495846742,-5133.0,0.00011743,2]
[334711054,1723495846752,-5835.0,0.00011743,2]
[334711056,1723495846761,-1672.0,0.00011743,2]
[334711058,1723495846770,-1204.0,0.00011743,2]
[334711059,1723495846780,-21756.0,0.00011743,2]
[334711060,1723495846789,-1074.0,0.00011743,2]
[334711061,1723495846798,-9903.70253644,0.0001185,2]
[334711062,1723495846807,-444.30241786,0.00011864,2]
[334711064,1723495846817,-600.0,0.00012,2]
[334711066,1723495846827,-168.38,0.00012,2]
[334711068,1723495846836,-168.38,0.00012,2]
[334711070,1723495846846,-168.38,0.00012,2]
[334711072,1723495846855,-168.38,0.00012,2]
[334711074,1723495846864,-168.38,0.00012,2]
[334711076,1723495846874,-168.38,0.00012,2]
[334711078,1723495846883,-168.38,0.00012,2]
[334711080,1723495846895,-168.38,0.00012,2]
[334711082,1723495846905,-168.38,0.00012,2]
[334711084,1723495846914,-168.38,0.00012,2]
[334711086,1723495846924,-168.38,0.00012,2]
[334711088,1723495846933,-168.38,0.00012,2]
[334711090,1723495846942,-168.38,0.00012,2]
[334711092,1723495846952,-168.38,0.00012,2]
[334711094,1723495846961,-168.38,0.00012,2]
[334711096,1723495846970,-168.38,0.00012,2]
[334711098,1723495846980,-168.38,0.00012,2]
[334711100,1723495846989,-168.38,0.00012,2]
[334711102,1723495846999,-168.38,0.00012,2]
[334711104,1723495847008,-165.14,0.00012033,2]
[334711105,1723495847017,-3000.0,0.0001209,2]
[334711107,1723495847027,-358.0,0.000121,2]
[334711109,1723495847036,-1027.0,0.000121,2]
[334711111,1723495847045,-20944.24846,0.000122,2]
[334711113,1723495847055,-150.30944536,0.00012299,2]
[334711115,1723495847064,-2955.4887976,0.00012299,2]
[334711117,1723495847073,-233.5376865,0.00012299,2]
[334711119,1723495847082,-10381.0267906,0.00012299,2]
[334711121,1723495847092,-3864.8677613,0.00012299,2]
[334711123,1723495847101,-263744.63670704,0.000123,4]
[334711124,1723495847110,-1000.0,0.000123,2]
[334711126,1723495847119,-1000.0,0.000123,2]
[334711128,1723495847129,-1000.0,0.000123,2]
[334711130,1723495847139,-1000.0,0.000123,2]
[334711132,1723495847149,-292.93477054,0.000123,2]
[334711134,1723495847158,-1461.93213714,0.00012348,2]
[334711136,1723495847168,-500.0,0.00012355,2]
[334711138,1723495847177,-1500.0,0.00012359,2]
[334711140,1723495847187,-5000.0,0.0001236,2]
[334711143,1723495847198,-155.0,0.0001236,2]
[334711145,1723495847207,-500.0,0.00012364,2]
[334711147,1723495847216,-500.0,0.00012373,2]
[334711149,1723495847225,-500.0,0.00012382,2]
[334711151,1723495847235,-500.0,0.0001239,2]
[334711153,1723495847244,-500.0,0.00012399,2]
[334711155,1723495847253,-8534.58875718,0.000124,2]
[334711157,1723495847262,-1131.0,0.000124,2]
[334711158,1723495847272,-500.0,0.00012408,2]
[334711161,1723495847281,-500.0,0.00012417,2]
[334711163,1723495847291,-500.0,0.00012426,2]
[334711165,1723495847300,-500.0,0.00012434,2]
[334711167,1723495847309,-615.10361984,0.00012439,2]
[334711169,1723495847319,-1192.1157,0.00012448,2]
[334711171,1723495847328,-9645.75163237,0.0001246,2]
[334711173,1723495847339,-151.02,0.00012471,2]
[334711175,1723495847348,-35000.0,0.00012472,2]
[334711176,1723495847357,-35000.0,0.00012481,2]
[334711178,1723495847366,-35000.0,0.0001249,2]
[334711180,1723495847376,-151.0,0.0001249,2]
[334711182,1723495847387,-151.0,0.0001249,2]
[334711184,1723495847403,-151.0,0.0001249,2]
[334711186,1723495847412,-151.0,0.0001249,2]
[334711188,1723495847421,-151.0,0.0001249,2]
[334711190,1723495847430,-151.0,0.0001249,2]
[334711192,1723495847440,-12574.0762891,0.00012496,2]
[334711194,1723495847449,-231.020731,0.00012496,2]
[334711196,1723495847459,-410.462515,0.00012496,2]
[334711198,1723495847468,-231.020731,0.00012496,2]
[334711200,1723495847477,-410.462515,0.00012496,2]
[334711202,1723495847487,-151.0,0.00012496,2]
[334711204,1723495847497,-272.952347,0.00012496,2]
[334711206,1723495847506,-2440.2693881,0.00012496,2]
[334711209,1723495847516,-151.0,0.00012496,2]
[334711211,1723495847525,-151.0,0.00012496,2]
[334711213,1723495847535,-151.0,0.00012496,2]
[334711215,1723495847544,-151.0,0.00012496,2]
[334711217,1723495847553,-410.659254,0.00012496,2]
[334711219,1723495847563,-410.659254,0.00012496,2]
[334711221,1723495847575,-153.103884,0.00012496,2]
[334711223,1723495847585,-153.103884,0.00012496,2]
[334711225,1723495847595,-151.0,0.00012496,2]
[334711227,1723495847604,-151.0,0.00012496,2]
[334711229,1723495847615,-151.0,0.00012496,2]
[334711231,1723495847624,-1425.8066187,0.00012496,2]
[334711233,1723495847634,-1517.689616,0.00012496,2]
[334711235,1723495847646,-1517.689616,0.00012496,2]
[334711237,1723495847657,-240.248023,0.00012496,2]
[334711239,1723495847668,-151.0,0.00012496,2]
[334711241,1723495847677,-151.0,0.00012496,2]
[334711243,1723495847686,-240.248023,0.00012496,2]
[334711245,1723495847696,-151.0,0.00012496,2]
[334711247,1723495847706,-151.0,0.00012496,2]
[334711249,1723495847717,-151.0,0.00012496,2]
[334711251,1723495847727,-240.072877,0.00012496,2]
[334711253,1723495847737,-240.072877,0.00012496,2]
[334711255,1723495847747,-239.104112,0.00012496,2]
[334711257,1723495847757,-239.104112,0.00012496,2]
[334711259,1723495847767,-2000.0,0.000125,2]
[334711261,1723495847777,-2000.0,0.000125,2]
[334711263,1723495847787,-150.0,0.000125,2]
[334711265,1723495847797,-151.0,0.000125,2]
[334711267,1723495847806,-151.0,0.000125,2]
[334711269,1723495847816,-151.0,0.000125,2]
[334711271,1723495847826,-272.058357,0.000125,2]
[334711273,1723495847836,-427.45264159,0.000125,2]
[334711275,1723495847846,-150.0,0.000125,2]
[334711278,1723495847856,-150.0,0.000125,2]
[334711280,1723495847866,-167.99839218,0.000125,2]
[334711282,1723495847875,-150.0,0.000125,2]
[334711284,1723495847885,-150.0,0.000125,2]
[334711286,1723495847895,-150.0,0.000125,2]
[334711288,1723495847905,-150.0,0.000125,2]
[334711290,1723495847915,-150.0,0.000125,2]
[334711292,1723495847926,-150.0,0.000125,2]
[334711294,1723495847935,-150.0,0.000125,2]
[334711296,1723495847946,-630.5885,0.000125,2]
[334711298,1723495847957,-630.5885,0.000125,2]
[334711300,1723495847967,-151.0,0.00012504,2]
[334711302,1723495847976,-151.0,0.00012504,2]
[334711303,1723495847986,-151.0,0.00012504,2]
[334711305,1723495847997,-328.183596,0.00012504,2]
[334711307,1723495848007,-328.183596,0.00012504,2]
[334711310,1723495848017,-163.660718,0.00012504,2]
[334711312,1723495848027,-151.0,0.00012504,2]
[334711314,1723495848037,-151.0,0.00012504,2]
[334711315,1723495848047,-151.0,0.00012504,2]
[334711317,1723495848057,-151.0,0.00012521,2]
[334711319,1723495848066,-151.0,0.00012521,2]
[334711321,1723495848076,-151.0,0.00012521,2]
[334711323,1723495848086,-384.450504,0.00012521,2]
[334711325,1723495848096,-384.450504,0.00012521,2]
[334711328,1723495848106,-151.0,0.00012521,2]
[334711329,1723495848117,-151.0,0.00012521,2]
[334711332,1723495848128,-174.052026,0.00012521,2]
[334711334,1723495848142,-151.0,0.00012521,2]
[334711336,1723495848152,-151.0,0.00012521,2]
[334711338,1723495848165,-151.0,0.00012521,2]
[334711340,1723495848176,-151.02,0.00012529,2]
[334711342,1723495848187,-151.0,0.00012539,2]
[334711344,1723495848198,-151.0,0.00012539,2]
[334711346,1723495848208,-151.0,0.00012539,2]
[334711348,1723495848220,-151.0,0.00012539,2]
[334711350,1723495848231,-151.0,0.00012539,2]
[334711352,1723495848241,-151.0,0.00012539,2]
[334711355,1723495848264,-151.0,0.00012539,2]
[334711356,1723495848275,-151.0,0.00012539,2]
[334711359,1723495848287,-151.0,0.00012539,2]
[334711360,1723495848298,-384.450504,0.00012539,2]
[334711363,1723495848309,-384.450504,0.00012539,2]
[334711365,1723495848320,-151.0,0.00012539,2]
[334711366,1723495848332,-151.0,0.00012539,2]
[334711369,1723495848343,-151.0,0.00012539,2]
[334711371,1723495848355,-151.0,0.00012539,2]
[334711373,1723495848370,-151.0,0.00012539,2]
[334711375,1723495848382,-151.0,0.00012539,2]
[334711377,1723495848412,-151.0,0.00012539,2]
[334711379,1723495848425,-151.0,0.00012539,2]
[334711381,1723495848437,-151.0,0.00012539,2]
[334711383,1723495848448,-151.0,0.00012539,2]
[334711385,1723495848460,-254.452027,0.00012539,2]
[334711387,1723495848474,-254.452027,0.00012539,2]
[334711389,1723495848485,-218.641047,0.00012539,2]
[334711391,1723495848497,-218.641047,0.00012539,2]
[334711393,1723495848509,-151.0,0.00012539,2]
[334711395,1723495848522,-151.0,0.00012539,2]
[334711397,1723495848534,-151.0,0.00012539,2]
[334711399,1723495848546,-151.0,0.00012539,2]
[334711401,1723495848557,-151.0,0.00012539,2]
[334711403,1723495848572,-151.0,0.00012539,2]
[334711405,1723495848586,-151.0,0.00012539,2]
[334711407,1723495848598,-151.0,0.00012539,2]
[334711409,1723495848610,-328.183596,0.00012539,2]
[334711411,1723495848621,-328.183596,0.00012539,2]
[334711413,1723495848633,-151.0,0.00012539,2]
[334711414,1723495848643,-151.0,0.00012539,2]
[334711415,1723495848665,-151.0,0.00012539,2]
[334711416,1723495848682,-151.0,0.00012539,2]
[334711417,1723495848694,-151.0,0.00012539,2]
[334711418,1723495848706,-200.074958,0.00012539,2]
[334711419,1723495848717,-151.0,0.00012539,2]
[334711420,1723495848729,-205.151961,0.00012539,2]
[334711421,1723495848742,-205.151961,0.00012539,2]
[334711422,1723495848754,-151.0,0.00012539,2]
[334711423,1723495848766,-188.043244,0.00012539,2]
[334711424,1723495848778,-151.0,0.00012539,2]
[334711425,1723495848789,-151.0,0.00012539,2]
[334711427,1723495848801,-250.287959,0.00012539,2]
[334711429,1723495848813,-151.0,0.00012539,2]
[334711431,1723495848823,-250.287959,0.00012539,2]
[334711433,1723495848833,-1112.743717,0.00012539,2]
[334711435,1723495848844,-151.0,0.00012539,2]
[334711437,1723495848856,-1112.743717,0.00012539,2]
[334711439,1723495848867,-151.0,0.00012539,2]
[334711441,1723495848878,-151.0,0.00012539,2]
[334711443,1723495848891,-151.0,0.00012539,2]
[334711445,1723495848902,-171.07459,0.00012539,2]
[334711447,1723495848913,-151.0,0.00012539,2]
[334711449,1723495848925,-231.020731,0.00012539,2]
[334711451,1723495848957,-410.462515,0.00012539,2]
[334711453,1723495848969,-231.020731,0.00012539,2]
[334711455,1723495848979,-410.462515,0.00012539,2]
[334711457,1723495848993,-151.0,0.00012539,2]
[334711459,1723495849005,-151.0,0.00012539,2]
[334711461,1723495849016,-294.717536,0.00012539,2]
[334711463,1723495849028,-151.0,0.00012539,2]
[334711465,1723495849039,-151.0,0.00012539,2]
[334711467,1723495849051,-410.659254,0.00012539,2]
[334711469,1723495849061,-410.659254,0.00012539,2]
[334711471,1723495849072,-153.103884,0.00012539,2]
[334711473,1723495849083,-153.103884,0.00012539,2]
[334711475,1723495849095,-151.0,0.00012539,2]
[334711477,1723495849106,-151.0,0.00012539,2]
[334711480,1723495849117,-1517.689616,0.00012539,2]
[334711481,1723495849129,-1517.689616,0.00012539,2]
[334711483,1723495849140,-240.248023,0.00012539,2]
[334711485,1723495849150,-151.0,0.00012539,2]
[334711487,1723495849162,-151.0,0.00012539,2]
[334711489,1723495849173,-240.248023,0.00012539,2]
[334711491,1723495849183,-151.0,0.00012539,2]
[334711493,1723495849194,-151.0,0.00012539,2]
[334711495,1723495849205,-151.0,0.00012539,2]
[334711497,1723495849216,-240.072877,0.00012539,2]
[334711499,1723495849228,-240.072877,0.00012539,2]
[334711501,1723495849239,-239.104112,0.00012539,2]
[334711503,1723495849252,-239.104112,0.00012539,2]
[334711505,1723495849263,-115563.70449923,0.0001254,2]
[334711508,1723495849281,-417.47216,0.0001254,2]
[334711512,1723495849307,-2836.5862804,0.0001254,2]
[334711538,1723495849573,-2990.50036596,0.0001254,2]
[334711541,1723495849592,-307.982,0.0001254,2]
[334711543,1723495849605,-363.48498648,0.0001254,2]
[334711545,1723495849619,-413.1192,0.0001254,2]
[334711548,1723495849631,-273.72011597,0.0001254,2]
[334711550,1723495849644,-9789.77510328,0.0001254,2]
[334711739,1723495874972,179.22409765,0.0001,2]
[334711740,1723495938689,9771.11591929,0.0001,2]
[334711743,1723496107180,376.26,9.372e-05,2]
[334711745,1723496135473,1924.42942206,9.372e-05,2]
[334711746,1723496135495,10000.0,9.372e-05,2]
[334711747,1723496135520,2435.9356853,9.372e-05,2]
[334711748,1723496264424,4213.66778009,9.372e-05,2]
[334711749,1723496275037,3350.39653461,9.372e-05,2]
[334711750,1723496275059,6649.60346539,9.372e-05,2]
[334711751,1723496333828,157.24,8.67e-05,2]
[334711752,1723496372436,3193.15653461,9.372e-05,2]
[334711753,1723496372458,6806.84346539,9.372e-05,2]
[334711754,1723496387172,155.0,9.372e-05,2]
[334711755,1723496387667,155.0,9.372e-05,2]
[334711756,1723496395924,1223.79025423,9.372e-05,2]
[334711757,1723496396943,264.54486734,9.372e-05,2]
[334711758,1723496397390,291.61081008,9.372e-05,2]
[334711759,1723496400490,693.22119304,9.372e-05,2]
[334711760,1723496408995,409.98940992,9.372e-05,2]
[334711761,1723496409017,4172.40257173,9.372e-05,2]
[334711762,1723496416935,227.76686171,9.372e-05,2]
[334711763,1723496422324,897.51477935,9.372e-05,2]
[334711764,1723496436276,151.081306,0.00025,62]
[334711765,1723496468004,151.081306,0.00025,63]
[334711766,1723496514328,1427.07191659,0.00027,120]
[334711767,1723496522568,500.0,9.372e-05,2]
[334711768,1723496522927,500.0,9.372e-05,2]
[334711781,1723496569806,214.71937121,9.372e-05,2]
[334711782,1723496572325,411.94091013,9.372e-05,2]
[334711783,1723496572543,871.98206993,9.372e-05,2]
[334711784,1723496573236,1284.65790957,9.372e-05,2]
[334711785,1723496574772,425.76564301,9.372e-05,2]
[334711786,1723496581641,155.0,9.372e-05,2]
[334711787,1723496582520,155.0,9.372e-05,2]
[334711788,1723496583317,183.24988336,9.372e-05,2]
[334711789,1723496583338,1126.91062211,9.372e-05,2]
[334711790,1723496593993,8873.08937789,9.372e-05,2]
[334711791,1723496594016,2451.63732791,9.372e-05,2]
[334711793,1723496603508,201.02552336,9.372e-05,2]
[334711794,1723496608003,485.6993547,9.372e-05,2]
[334711795,1723496608597,402.62,9.259e-05,2]
[334711798,1723496790523,1371.53060413,9.259e-05,2]
[334711799,1723496830192,155.0,9.259e-05,2]
[334711800,1723496830697,500.0,9.259e-05,2]
[334711801,1723496830961,1941.73261364,9.259e-05,2]
[334711802,1723496831053,500.0,9.259e-05,2]
[334711803,1723496831307,693.22119304,9.259e-05,2]
[334711804,1723496831368,500.0,9.259e-05,2]
[334711805,1723496831722,500.0,9.259e-05,2]
[334711806,1723496832598,151.0,9.259e-05,2]
[334711807,1723496832637,146.53338322,9.259e-05,2]
[334711808,1723496832657,353.46661678,9.259e-05,2]
[334711809,1723496832801,151.0,9.259e-05,2]
[334711810,1723496832954,500.0,9.259e-05,2]
[334711811,1723496833077,654.0,9.259e-05,2]
[334711812,1723496833118,151.0,9.259e-05,2]
[334711813,1723496833343,151.0,9.259e-05,2]
[334711814,1723496833495,151.0,9.259e-05,2]
[334711815,1723496833780,151.0,9.259e-05,2]
[334711816,1723496834104,201.0,9.259e-05,2]
[334711817,1723496841195,155.0,9.259e-05,2]
[334711818,1723496841325,411.66882578,9.259e-05,2]
[334711819,1723496842062,1269.05432873,9.259e-05,2]
[334711820,1723496843480,291.4107919,9.259e-05,2]
[334711821,1723496845011,485.6993547,9.259e-05,2]
[334711822,1723496845342,1309.42997034,9.259e-05,2]
[334711823,1723496849700,363.7738379,9.259e-05,2]
[334711824,1723496853976,1223.79025423,9.259e-05,2]
[334711825,1723496857010,227.76686171,9.259e-05,2]
[334711826,1723496857664,309.92632287,9.259e-05,2]
[334711827,1723496873197,1371.29644315,9.259e-05,2]
[334711828,1723496883375,117.71639191,8.925e-05,2]
[334711829,1723496883396,39.52360809,8.925e-05,2]
[334711830,1723496920691,155.0,9.259e-05,2]
[334711831,1723496935987,9805.47639191,9.259e-05,2]
[334711832,1723496936011,194.52360809,9.259e-05,2]
[334711833,1723496942070,1267.92062401,9.259e-05,2]
[334711835,1723497030990,8537.5557679,9.259e-05,2]
[334711836,1723497031016,9425.7019814,9.259e-05,2]
[334711845,1723497031801,-4958.6828,9.9e-05,2]
[334711846,1723497031811,-1050.10237243,0.0001,2]
[334711847,1723497031820,-412.38967404,0.0001,2]
[334711848,1723497031832,-152.7,0.00010627,2]
[334711849,1723497031842,-1000.0,0.000107,2]
[334711850,1723497031852,-1619.78644028,0.000108,2]
[334711851,1723497031862,-936.87403905,0.00010899,2]
[334711852,1723497031872,-313.57105066,0.00010899,2]
[334711853,1723497031892,-262.46590742,0.00010899,2]
[334711854,1723497031919,-2883.21346343,0.00010899,2]
[334711855,1723497031980,-440.46604856,0.00010899,2]
[334711856,1723497032039,-545.15058203,0.00010899,2]
[334711861,1723497032704,-1445.92991463,0.00010899,2]
[334711862,1723497032714,-372.04774803,0.00011,2]
[334711863,1723497032723,-250.0,0.00011,2]
[334711864,1723497032733,-760.52,0.00011,2]
[334711865,1723497032742,-723.87947702,0.00011005,2]
[334711866,1723497032751,-281.80471297,0.00011071,2]
[334711867,1723497032763,-156.59528703,0.00011071,2]
[334711868,1723497032772,-499.01183703,0.00011092,2]
[334711869,1723497032787,-272.98816297,0.00011092,2]
[334711870,1723497032797,-15483.10746637,0.00011105,2]
[334711871,1723497032807,-155.0,0.00011105,2]
[334711872,1723497032817,-9269.56154788,0.00011105,2]
[334711873,1723497032826,-3808.20467792,0.00011105,2]
[334711874,1723497032835,-5748.90614486,0.00011105,2]
[334711875,1723497032855,-1251.09385514,0.00011105,2]
[334711876,1723497032865,-5403.79429818,0.00011105,2]
[334711877,1723497032874,-9903.70253644,0.00011105,2]
[334711878,1723497032884,-2836.06303036,0.00011105,2]
[334711879,1723497032893,-298.64662098,0.00011105,2]
[334711880,1723497032903,-155.0406408,0.00011105,2]
[334711881,1723497032912,-10534.15307555,0.00011105,2]
[334711882,1723497032922,-3404.38999599,0.00011105,2]
[334711883,1723497032931,-155.03503967,0.00011105,2]
[334711884,1723497032941,-2145.94258433,0.00011105,2]
[334711885,1723497032951,-1500.0,0.00011105,2]
[334711886,1723497032960,-2111.39291129,0.00011105,2]
[334711887,1723497032969,-189.97458777,0.00011105,2]
[334711888,1723497032979,-719.8919336,0.00011105,2]
[334711889,1723497032992,-313.72504289,0.00011105,2]
[334711890,1723497033003,-3032.35761195,0.00011105,2]
[334711891,1723497033013,-649.86351287,0.00011105,2]
[334711892,1723497033023,-203.41395605,0.00011105,2]
[334711893,1723497033032,-155.0,0.00011105,2]
[334711894,1723497033042,-264.49036255,0.00011105,2]
[334711895,1723497033052,-203.15740941,0.00011105,2]
[334711896,1723497033062,-520.13340827,0.00011105,2]